fUST/lending_fUST_20250727
["ID","MTS","AMOUNT","RATE_DAILY","PERIOD"]
[375197641,1753582258281,-805.9,0.00020324,2]
[375197642,1753582258291,-460.0,0.00020324,2]
[375197643,1753582258300,-460.0,0.00020324,2]
[375197644,1753582258381,-460.0,0.00020324,2]
[375197645,1753582258391,-460.0,0.00020324,2]
[375197646,1753582258400,-460.0,0.00020324,2]
[375197647,1753582258410,-460.0,0.00020324,2]
[375197648,1753582258419,-460.0,0.00020324,2]
[375197649,1753582258429,-460.0,0.00020324,2]
[375197650,1753582258438,-460.0,0.00020324,2]
[375197651,1753582258448,-460.0,0.00020324,2]
[375197652,1753582258461,-460.0,0.00020324,2]
[375197653,1753582258470,-1417.39,0.00020324,2]
[375197654,1753582258479,-460.0,0.00020324,2]
[375197655,1753582258489,-455.84557841,0.00020324,2]
[375197656,1753582258499,-460.0,0.00020324,2]
[375197657,1753582258508,-460.0,0.00020324,2]
[375197658,1753582258518,-460.0,0.00020324,2]
[375197659,1753582258527,-460.0,0.00020324,2]
[375197660,1753582258537,-346.99285591,0.00020324,2]
[375197661,1753582258547,-460.0,0.00020324,2]
[375197662,1753582258556,-460.0,0.00020324,2]
[375197663,1753582258566,-460.0,0.00020324,2]
[375197664,1753582258575,-460.0,0.00020324,2]
[375197665,1753582258584,-460.0,0.00020324,2]
[375197666,1753582258594,-460.0,0.00020324,2]
[375197667,1753582258604,-460.0,0.00020324,2]
[375197668,1753582258613,-460.0,0.00020324,2]
[375197669,1753582258623,-460.0,0.00020324,2]
[375197670,1753582258632,-502.97,0.00020324,2]
[375197671,1753582258642,-216.64508203,0.00020324,2]
[375197672,1753582258651,-460.0,0.00020324,2]
[375197673,1753582258660,-460.0,0.00020324,2]
[375197674,1753582258670,-460.0,0.00020324,2]
[375197675,1753582258679,-460.0,0.00020324,2]
[375197676,1753582258689,-460.0,0.00020324,2]
[375197677,1753582258699,-464.39331509,0.00020324,2]
[375197678,1753582258709,-460.0,0.00020324,2]
[375197679,1753582258719,-460.0,0.00020324,2]
[375197680,1753582258728,-460.0,0.00020324,2]
[375197681,1753582258738,-460.0,0.00020324,2]
[375197682,1753582258747,-460.0,0.00020324,2]
[375197683,1753582258756,-460.0,0.00020324,2]
[375197684,1753582258765,-462.2915928,0.00020324,2]
[375197685,1753582258775,-460.0,0.00020324,2]
[375197686,1753582258785,-460.0,0.00020324,2]
[375197687,1753582258794,-460.0,0.00020324,2]
[375197688,1753582258803,-460.0,0.00020324,2]
[375197689,1753582258812,-1588.93,0.00020324,2]
[375197690,1753582258822,-465.1315204,0.00020324,2]
[375197691,1753582258831,-955.56,0.00020324,2]
[375197692,1753582258840,-460.0,0.00020324,2]
[375197693,1753582258849,-460.0,0.00020324,2]
[375197694,1753582258858,-460.0,0.00020324,2]
[375197695,1753582258867,-460.0,0.00020324,2]
[375197696,1753582258877,-460.0,0.00020324,2]
[375197697,1753582258886,-460.0,0.00020324,2]
[375197698,1753582258896,-217.11579718,0.00020324,2]
[375197699,1753582258905,-460.0,0.00020324,2]
[375197700,1753582258914,-460.0,0.00020324,2]
[375197701,1753582258924,-460.0,0.00020324,2]
[375197702,1753582258933,-460.0,0.00020324,2]
[375197703,1753582258943,-460.0,0.00020324,2]
[375197704,1753582258952,-460.0,0.00020324,2]
[375197705,1753582258961,-464.84,0.00020324,2]
[375197706,1753582258970,-500.0,0.00020324,2]
[375197707,1753582258984,-460.0,0.00020324,2]
[375197708,1753582258994,-460.0,0.00020324,2]
[375197709,1753582259003,-562.76,0.00020324,2]
[375197710,1753582259012,-460.0,0.00020324,2]
[375197711,1753582259022,-460.0,0.00020324,2]
[375197712,1753582259032,-460.0,0.00020324,2]
[375197713,1753582259041,-460.0,0.00020324,2]
[375197714,1753582259051,-1937.42,0.00020324,2]
[375197715,1753582259060,-460.0,0.00020324,2]
[375197716,1753582259071,-2170.36,0.00020324,2]
[375197717,1753582259080,-460.0,0.00020324,2]
[375197718,1753582259090,-460.0,0.00020324,2]
[375197719,1753582259099,-460.0,0.00020324,2]
[375197720,1753582259109,-460.0,0.00020324,2]
[375197721,1753582259118,-460.0,0.00020324,2]
[375197722,1753582259128,-460.0,0.00020324,2]
[375197723,1753582259137,-460.0,0.00020324,2]
[375197724,1753582259147,-460.0,0.00020324,2]
[375197725,1753582259156,-460.0,0.00020324,2]
[375197726,1753582259166,-460.0,0.00020324,2]
[375197727,1753582259175,-460.0,0.00020324,2]
[375197728,1753582259185,-460.0,0.00020324,2]
[375197729,1753582259195,-460.0,0.00020324,2]
[375197730,1753582259205,-460.0,0.00020324,2]
[375197731,1753582259215,-464.17826561,0.00020324,2]
[375197732,1753582259224,-3500.14,0.00020324,2]
[375197733,1753582259234,-460.0,0.00020324,2]
[375197734,1753582259243,-213.00258013,0.00020324,2]
[375197735,1753582259253,-460.0,0.00020324,2]
[375197736,1753582259263,-1578.15,0.00020326,2]
[375197737,1753582259272,-460.0,0.00020326,2]
[375197738,1753582259281,-1038.87,0.00020327,2]
[375197739,1753582259291,-1506.17927576,0.00020368,2]
[375197740,1753582259301,-1500.0,0.00020368,2]
[375197741,1753582259310,-216.01841554,0.00020396,2]
[375197742,1753582259320,-840.57612966,0.00020396,2]
[375197743,1753582259329,-150.0,0.00020454,2]
[375197744,1753582259339,-466.95358508,0.00020547,2]
[375197745,1753582259349,-460.0,0.00020547,2]
[375197746,1753582259358,-460.0,0.00020547,2]
[375197747,1753582259368,-460.0,0.00020547,2]
[375197748,1753582259378,-471.15775609,0.00020547,2]
[375197749,1753582259387,-460.0,0.00020547,2]
[375197750,1753582259397,-460.0,0.00020547,2]
[375197751,1753582259406,-460.0,0.00020547,2]
[375197752,1753582259416,-460.0,0.00020547,2]
[375197753,1753582259426,-460.0,0.00020547,2]
[375197754,1753582259435,-460.0,0.00020547,2]
[375197755,1753582259445,-460.0,0.00020547,2]
[375197756,1753582259455,-460.0,0.00020547,2]
[375197757,1753582259465,-460.0,0.00020547,2]
[375197758,1753582259474,-460.0,0.00020547,2]
[375197759,1753582259484,-460.0,0.00020547,2]
[375197760,1753582259494,-460.0,0.00020547,2]
[375197761,1753582259503,-516.35,0.00020547,2]
[375197762,1753582259512,-460.0,0.00020547,2]
[375197763,1753582259521,-460.0,0.00020547,2]
[375197764,1753582259531,-460.0,0.00020547,2]
[375197765,1753582259541,-460.0,0.00020547,2]
[375197766,1753582259550,-460.0,0.00020547,2]
[375197767,1753582259559,-460.0,0.00020547,2]
[375197768,1753582259568,-460.0,0.00020547,2]
[375197769,1753582259577,-487.33,0.00020547,2]
[375197770,1753582259586,-3933.84,0.00020547,2]
[375197771,1753582259595,-1793.96,0.00020547,2]
[375197772,1753582259605,-460.0,0.00020547,2]
[375197773,1753582259616,-509.61,0.00020547,2]
[375197774,1753582259625,-308.6608633,0.00020547,2]
[375197775,1753582259635,-460.0,0.00020547,2]
[375197776,1753582259645,-460.0,0.00020547,2]
[375197777,1753582259655,-460.0,0.00020547,2]
[375197778,1753582259664,-460.0,0.00020547,2]
[375197779,1753582259674,-1968.49,0.00020547,2]
[375197780,1753582259683,-460.0,0.00020547,2]
[375197781,1753582259766,-460.0,0.00020547,2]
[375197782,1753582259776,-244.9121723,0.00020547,2]
[375197783,1753582259786,-591.71,0.00020547,2]
[375197784,1753582259795,-460.0,0.00020547,2]
[375197785,1753582259805,-464.05278145,0.00020547,2]
[375197786,1753582259814,-460.0,0.00020547,2]
[375197787,1753582259824,-460.0,0.00020547,2]
[375197788,1753582259833,-460.0,0.00020547,2]
[375197789,1753582259842,-460.0,0.00020547,2]
[375197790,1753582259852,-1208.47,0.00020547,2]
[375197791,1753582259861,-460.0,0.00020547,2]
[375197792,1753582259871,-460.0,0.00020547,2]
[375197793,1753582259880,-460.0,0.00020547,2]
[375197794,1753582259890,-465.92086138,0.00020547,2]
[375197795,1753582259899,-460.0,0.00020547,2]
[375197796,1753582259910,-460.0,0.00020547,2]
[375197797,1753582259920,-460.0,0.00020547,2]
[375197798,1753582259929,-460.0,0.00020547,2]
[375197799,1753582259939,-1316.47,0.00020547,2]
[375197800,1753582259948,-487.35,0.00020547,2]
[375197801,1753582259959,-462.86072961,0.00020547,2]
[375197802,1753582259969,-460.0,0.00020547,2]
[375197803,1753582259982,-460.0,0.00020547,2]
[375197804,1753582259992,-1027.94,0.00020547,2]
[375197805,1753582260002,-460.0,0.00020547,2]
[375197806,1753582260012,-715.99,0.00020547,2]
[375197807,1753582260020,-460.0,0.00020547,2]
[375197808,1753582260030,-460.0,0.00020547,2]
[375197809,1753582260040,-448.57007102,0.00020547,2]
[375197810,1753582260049,-460.0,0.00020547,2]
[375197811,1753582260059,-460.0,0.00020547,2]
[375197812,1753582260069,-460.0,0.00020547,2]
[375197813,1753582260079,-1619.17,0.00020547,2]
[375197814,1753582260089,-465.67,0.00020547,2]
[375197815,1753582260099,-587.06,0.00020547,2]
[375197816,1753582260108,-460.0,0.00020547,2]
[375197817,1753582260118,-460.0,0.00020547,2]
[375197818,1753582260128,-460.0,0.00020547,2]
[375197819,1753582260138,-509.37,0.00020547,2]
[375197820,1753582260147,-472.92,0.00020547,2]
[375197821,1753582260156,-309.31915443,0.00020598,2]
[375197822,1753582260165,-464.61926376,0.00020598,2]
[375197823,1753582260175,-460.0,0.00020598,2]
[375197824,1753582260184,-460.0,0.00020598,2]
[375197825,1753582260193,-460.0,0.00020598,2]
[375197826,1753582260202,-462.78343321,0.00020598,2]
[375197827,1753582260213,-461.76998625,0.00020598,2]
[375197828,1753582260223,-200.96,0.00020598,2]
[375197829,1753582260232,-460.0,0.00020598,2]
[375197830,1753582260241,-460.0,0.00020598,2]
[375197831,1753582260251,-460.0,0.00020598,2]
[375197832,1753582260261,-460.0,0.00020598,2]
[375197833,1753582260271,-460.0,0.00020598,2]
[375197834,1753582260280,-462.06,0.00020598,2]
[375197835,1753582260290,-460.0,0.00020598,2]
[375197836,1753582260299,-460.0,0.00020598,2]
[375197837,1753582260310,-567.87,0.00020598,2]
[375197838,1753582260319,-727.74,0.00020598,2]
[375197839,1753582260328,-377.84,0.00020598,2]
[375197840,1753582260338,-460.0,0.00020598,2]
[375197841,1753582260347,-460.0,0.00020598,2]
[375197842,1753582260356,-460.0,0.00020598,2]
[375197843,1753582260365,-805.9,0.00020598,2]
[375197844,1753582260375,-460.0,0.00020598,2]
[375197845,1753582260384,-407.46112511,0.00020598,2]
[375197846,1753582260394,-460.0,0.00020598,2]
[375197847,1753582260403,-521.52852086,0.00020598,2]
[375197848,1753582260413,-460.0,0.00020598,2]
[375197849,1753582260422,-460.0,0.00020598,2]
[375197850,1753582260431,-460.0,0.00020598,2]
[375197851,1753582260440,-460.0,0.00020598,2]
[375197852,1753582260450,-460.0,0.00020598,2]
[375197853,1753582260461,-460.0,0.00020598,2]
[375197854,1753582260476,-1417.39,0.00020598,2]
[375197855,1753582260485,-460.0,0.00020598,2]
[375197856,1753582260495,-460.0,0.00020598,2]
[375197857,1753582260504,-460.0,0.00020598,2]
[375197858,1753582260514,-460.0,0.00020598,2]
[375197859,1753582260523,-460.0,0.00020598,2]
[375197860,1753582260533,-460.0,0.00020598,2]
[375197861,1753582260542,-303.11856516,0.00020598,2]
[375197862,1753582260551,-460.0,0.00020598,2]
[375197863,1753582260561,-460.0,0.00020598,2]
[375197864,1753582260570,-460.0,0.00020598,2]
[375197865,1753582260580,-460.0,0.00020598,2]
[375197866,1753582260590,-460.0,0.00020598,2]
[375197867,1753582260599,-460.0,0.00020598,2]
[375197868,1753582260609,-502.97,0.00020598,2]
[375197869,1753582260619,-171.28,0.00020598,2]
[375197870,1753582260628,-460.0,0.00020598,2]
[375197871,1753582260638,-460.0,0.00020598,2]
[375197872,1753582260648,-460.0,0.00020598,2]
[375197873,1753582260658,-460.0,0.00020598,2]
[375197874,1753582260667,-460.0,0.00020598,2]
[375197875,1753582260677,-460.0,0.00020598,2]
[375197876,1753582260687,-460.0,0.00020598,2]
[375197877,1753582260697,-460.0,0.00020598,2]
[375197878,1753582260708,-460.0,0.00020598,2]
[375197879,1753582260717,-460.0,0.00020598,2]
[375197880,1753582260727,-460.0,0.00020598,2]
[375197881,1753582260738,-460.0,0.00020598,2]
[375197882,1753582260747,-527.56839561,0.00020598,2]
[375197883,1753582260757,-460.0,0.00020598,2]
[375197884,1753582260766,-1588.93,0.00020598,2]
[375197885,1753582260776,-955.56,0.00020598,2]
[375197886,1753582260785,-460.0,0.00020598,2]
[375197887,1753582260795,-460.0,0.00020598,2]
[375197888,1753582260804,-505.17170247,0.00020598,2]
[375197889,1753582260813,-460.0,0.00020598,2]
[375197890,1753582260822,-460.0,0.00020598,2]
[375197891,1753582260832,-232.5913148,0.00020598,2]
[375197892,1753582260842,-460.0,0.00020598,2]
[375197893,1753582260851,-460.0,0.00020598,2]
[375197894,1753582260861,-460.0,0.00020598,2]
[375197895,1753582260871,-460.0,0.00020598,2]
[375197896,1753582260880,-460.0,0.00020598,2]
[375197897,1753582260890,-500.0,0.00020598,2]
[375197898,1753582260900,-464.84,0.00020598,2]
[375197899,1753582260909,-460.0,0.00020598,2]
[375197900,1753582260919,-562.76,0.00020598,2]
[375197901,1753582260929,-462.8941791,0.00020598,2]
[375197902,1753582260938,-460.0,0.00020598,2]
[375197903,1753582260948,-460.0,0.00020598,2]
[375197904,1753582260959,-1937.42,0.00020598,2]
[375197905,1753582260969,-460.0,0.00020598,2]
[375197906,1753582260983,-2170.36,0.00020598,2]
[375197907,1753582261066,-460.0,0.00020598,2]
[375197908,1753582261076,-460.0,0.00020598,2]
[375197909,1753582261086,-460.0,0.00020598,2]
[375197910,1753582261096,-460.0,0.00020598,2]
[375197911,1753582261106,-460.0,0.00020598,2]
[375197912,1753582261116,-151.0,0.00020598,2]
[375197913,1753582261125,-460.0,0.00020598,2]
[375197914,1753582261136,-468.50381225,0.00020598,2]
[375197915,1753582261146,-460.0,0.00020598,2]
[375197916,1753582261156,-460.0,0.00020598,2]
[375197917,1753582261165,-539.3951847,0.00020598,2]
[375197918,1753582261175,-460.0,0.00020598,2]
[375197919,1753582261184,-460.0,0.00020598,2]
[375197920,1753582261194,-460.0,0.00020598,2]
[375197921,1753582261203,-460.0,0.00020598,2]
[375197922,1753582261212,-3500.14,0.00020598,2]
[375197923,1753582261222,-460.0,0.00020598,2]
[375197924,1753582261232,-460.0,0.00020598,2]
[375197925,1753582261242,-1578.15,0.000206,2]
[375197926,1753582261251,-460.0,0.000206,2]
[375197927,1753582261261,-1038.87,0.00020601,2]
[375197928,1753582261270,-500.0,0.00020616,2]
[375197929,1753582261280,-503.86015973,0.00020668,2]
[375197930,1753582261289,-467.97992394,0.00020821,2]
[375197931,1753582261299,-460.0,0.00020821,2]
[375197932,1753582261308,-460.0,0.00020821,2]
[375197933,1753582261318,-460.0,0.00020821,2]
[375197934,1753582261328,-460.0,0.00020821,2]
[375197935,1753582261338,-460.0,0.00020821,2]
[375197936,1753582261347,-460.0,0.00020821,2]
[375197937,1753582261357,-401.26873333,0.00020821,2]
[375197938,1753582261367,-460.0,0.00020821,2]
[375197939,1753582261377,-460.0,0.00020821,2]
[375197940,1753582261386,-460.0,0.00020821,2]
[375197941,1753582261395,-516.7,0.00020821,2]
[375197942,1753582261405,-460.0,0.00020821,2]
[375197943,1753582261415,-460.0,0.00020821,2]
[375197944,1753582261424,-460.0,0.00020821,2]
[375197945,1753582261434,-460.0,0.00020821,2]
[375197946,1753582261443,-460.0,0.00020821,2]
[375197947,1753582261454,-460.0,0.00020821,2]
[375197948,1753582261463,-460.0,0.00020821,2]
[375197949,1753582261472,-487.33,0.00020821,2]
[375197950,1753582261481,-3933.84,0.00020821,2]
[375197951,1753582261490,-1793.96,0.00020821,2]
[375197952,1753582261499,-460.0,0.00020821,2]
[375197953,1753582261508,-509.61,0.00020821,2]
[375197954,1753582261517,-460.0,0.00020821,2]
[375197955,1753582261526,-460.0,0.00020821,2]
[375197956,1753582261536,-460.0,0.00020821,2]
[375197957,1753582261545,-460.0,0.00020821,2]
[375197958,1753582261554,-1968.49,0.00020821,2]
[375197959,1753582261563,-460.0,0.00020821,2]
[375197960,1753582261572,-460.0,0.00020821,2]
[375197961,1753582261581,-591.71,0.00020821,2]
[375197962,1753582261590,-460.0,0.00020821,2]
[375197963,1753582261599,-460.0,0.00020821,2]
[375197964,1753582261608,-460.0,0.00020821,2]
[375197965,1753582261617,-460.0,0.00020821,2]
[375197966,1753582261626,-460.0,0.00020821,2]
[375197967,1753582261635,-1208.47,0.00020821,2]
[375197968,1753582261644,-460.0,0.00020821,2]
[375197969,1753582261653,-460.0,0.00020821,2]
[375197970,1753582261662,-460.0,0.00020821,2]
[375197971,1753582261671,-460.0,0.00020821,2]
[375197972,1753582261680,-460.0,0.00020821,2]
[375197973,1753582261689,-460.0,0.00020821,2]
[375197974,1753582261698,-460.0,0.00020821,2]
[375197975,1753582261708,-1316.47,0.00020821,2]
[375197976,1753582261717,-487.35,0.00020821,2]
[375197977,1753582261726,-460.0,0.00020821,2]
[375197978,1753582261735,-544.73769636,0.00020821,2]
[375197979,1753582261745,-1027.94,0.00020821,2]
[375197980,1753582261754,-460.0,0.00020821,2]
[375197981,1753582261763,-715.99,0.00020821,2]
[375197982,1753582261773,-464.4481757,0.00020821,2]
[375197983,1753582261783,-460.0,0.00020821,2]
[375197984,1753582261792,-460.0,0.00020821,2]
[375197985,1753582261801,-460.0,0.00020821,2]
[375197986,1753582261811,-460.0,0.00020821,2]
[375197987,1753582261820,-1619.17,0.00020821,2]
[375197988,1753582261829,-465.67,0.00020821,2]
[375197989,1753582261839,-587.06,0.00020821,2]
[375197990,1753582261849,-460.0,0.00020821,2]
[375197991,1753582261858,-460.0,0.00020821,2]
[375197992,1753582261868,-460.0,0.00020821,2]
[375197993,1753582261877,-509.37,0.00020821,2]
[375197994,1753582261887,-472.92,0.00020821,2]
[375197995,1753582261897,-300.0,0.00020846,2]
[375197996,1753582261907,-246.0,0.00020846,2]
[375197997,1753582261917,-396.0,0.00020846,2]
[375197998,1753582261927,-460.0,0.00020872,2]
[375197999,1753582261936,-479.79083206,0.00020872,2]
[375198000,1753582261947,-415.11027895,0.00020872,2]
[375198001,1753582261957,-460.0,0.00020872,2]
[375198002,1753582261967,-460.0,0.00020872,2]
[375198003,1753582261980,-331.31,0.00020872,2]
[375198004,1753582261990,-460.0,0.00020872,2]
[375198005,1753582262000,-226.72966408,0.00020872,2]
[375198006,1753582262010,-460.0,0.00020872,2]
[375198007,1753582262020,-460.0,0.00020872,2]
[375198008,1753582262030,-727.74,0.00020872,2]
[375198009,1753582262040,-307.6,0.00020872,2]
[375198010,1753582262049,-518.94,0.00020872,2]
[375198011,1753582262059,-460.0,0.00020872,2]
[375198012,1753582262068,-805.9,0.00020872,2]
[375198013,1753582262078,-460.0,0.00020872,2]
[375198014,1753582262088,-460.0,0.00020872,2]
[375198015,1753582262098,-460.0,0.00020872,2]
[375198016,1753582262107,-330.58,0.00020872,2]
[375198017,1753582262118,-192.72,0.00020872,2]
[375198018,1753582262127,-460.0,0.00020872,2]
[375198019,1753582262137,-460.0,0.00020872,2]
[375198020,1753582262146,-1417.39,0.00020872,2]
[375198021,1753582262156,-460.0,0.00020872,2]
[375198022,1753582262231,-205.85073227,0.00020872,2]
[375198023,1753582262241,-164.54,0.00020872,2]
[375198024,1753582262250,-460.0,0.00020872,2]
[375198025,1753582262265,-490.9,0.00020872,2]
[375198026,1753582262276,-460.0,0.00020872,2]
[375198027,1753582262286,-460.0,0.00020872,2]
[375198028,1753582262295,-460.0,0.00020872,2]
[375198029,1753582262305,-502.97,0.00020872,2]
[375198030,1753582262314,-460.0,0.00020872,2]
[375198031,1753582262325,-460.0,0.00020872,2]
[375198032,1753582262335,-460.0,0.00020872,2]
[375198033,1753582262345,-460.0,0.00020872,2]
[375198034,1753582262355,-460.0,0.00020872,2]
[375198035,1753582262366,-460.0,0.00020872,2]
[375198036,1753582262376,-460.0,0.00020872,2]
[375198037,1753582262387,-576.02,0.00020872,2]
[375198038,1753582262396,-460.0,0.00020872,2]
[375198039,1753582262408,-464.65588408,0.00020872,2]
[375198040,1753582262419,-1588.93,0.00020872,2]
[375198041,1753582262435,-955.56,0.00020872,2]
[375198042,1753582262445,-460.0,0.00020872,2]
[375198043,1753582262455,-460.0,0.00020872,2]
[375198044,1753582262465,-460.0,0.00020872,2]
[375198045,1753582262477,-460.0,0.00020872,2]
[375198046,1753582262488,-460.0,0.00020872,2]
[375198047,1753582262499,-460.0,0.00020872,2]
[375198048,1753582262509,-460.0,0.00020872,2]
[375198049,1753582262519,-460.0,0.00020872,2]
[375198050,1753582262530,-460.0,0.00020872,2]
[375198051,1753582262540,-464.84,0.00020872,2]
[375198052,1753582262552,-460.0,0.00020872,2]
[375198053,1753582262563,-562.76,0.00020872,2]
[375198054,1753582262575,-151.0,0.00020872,2]
[375198055,1753582262586,-460.0,0.00020872,2]
[375198056,1753582262596,-460.0,0.00020872,2]
[375198057,1753582262607,-1937.42,0.00020872,2]
[375198058,1753582262618,-151.0,0.00020872,2]
[375198059,1753582262629,-460.0,0.00020872,2]
[375198060,1753582262640,-2170.36,0.00020872,2]
[375198061,1753582262651,-460.0,0.00020872,2]
[375198062,1753582262661,-460.0,0.00020872,2]
[375198063,1753582262672,-460.0,0.00020872,2]
[375198064,1753582262683,-460.0,0.00020872,2]
[375198065,1753582262693,-460.0,0.00020872,2]
[375198066,1753582262705,-460.0,0.00020872,2]
[375198067,1753582262715,-460.0,0.00020872,2]
[375198068,1753582262724,-460.0,0.00020872,2]
[375198069,1753582262734,-460.0,0.00020872,2]
[375198070,1753582262743,-460.0,0.00020872,2]
[375198071,1753582262754,-460.0,0.00020872,2]
[375198072,1753582262764,-460.0,0.00020872,2]
[375198073,1753582262774,-3500.14,0.00020872,2]
[375198074,1753582262784,-460.0,0.00020872,2]
[375198075,1753582262794,-460.0,0.00020872,2]
[375198076,1753582262809,-1578.15,0.00020874,2]
[375198077,1753582262829,-460.0,0.00020874,2]
[375198078,1753582262849,-1038.87,0.00020875,2]
[375198079,1753582262868,-1680.0,0.00020895,2]
[375198080,1753582262891,-3247.78997952,0.000209,4]
[375198081,1753582262911,-2000.0,0.00020916,2]
[375198082,1753582262931,-1309.0,0.00020947,2]
[375198083,1753582262946,-3000.0,0.00021,2]
[375198084,1753582262965,-3000.0,0.0002101,2]
[375198085,1753582262987,-3000.0,0.0002102,2]
[375198086,1753582263006,-3000.0,0.0002103,2]
[375198087,1753582263019,-3000.0,0.0002104,2]
[375198088,1753582263039,-4331.55739445,0.00021046,2]
[375198089,1753582263055,-3000.0,0.0002105,2]
[375198090,1753582263072,-3000.0,0.0002106,2]
[375198091,1753582263087,-3000.0,0.0002107,2]
[375198092,1753582263103,-3247.78997933,0.00021072,4]
[375198093,1753582263118,-3000.0,0.0002108,2]
[375198094,1753582263134,-3995.888089,0.0002109,2]
[375198095,1753582263149,-333.95,0.00021095,2]
[375198096,1753582263164,-460.0,0.00021095,2]
[375198097,1753582263180,-460.0,0.00021095,2]
[375198098,1753582263195,-460.0,0.00021095,2]
[375198099,1753582263212,-460.0,0.00021095,2]
[375198100,1753582263227,-460.0,0.00021095,2]
[375198101,1753582263242,-460.0,0.00021095,2]
[375198102,1753582263256,-466.56837024,0.00021095,2]
[375198103,1753582263272,-460.0,0.00021095,2]
[375198104,1753582263286,-465.8268507,0.00021095,2]
[375198105,1753582263302,-460.0,0.00021095,2]
[375198106,1753582263318,-460.0,0.00021095,2]
[375198107,1753582263333,-460.0,0.00021095,2]
[375198108,1753582263348,-460.0,0.00021095,2]
[375198109,1753582263363,-460.0,0.00021095,2]
[375198110,1753582263378,-460.0,0.00021095,2]
[375198111,1753582263393,-487.33,0.00021095,2]
[375198112,1753582263408,-3933.84,0.00021095,2]
[375198113,1753582263423,-1793.96,0.00021095,2]
[375198114,1753582263438,-509.61,0.00021095,2]
[375198115,1753582263454,-460.0,0.00021095,2]
[375198116,1753582263465,-460.0,0.00021095,2]
[375198117,1753582263475,-460.0,0.00021095,2]
[375198118,1753582263484,-460.0,0.00021095,2]
[375198119,1753582263493,-1968.49,0.00021095,2]
[375198120,1753582263502,-460.0,0.00021095,2]
[375198121,1753582263511,-536.92,0.00021095,2]
[375198122,1753582263521,-591.71,0.00021095,2]
[375198123,1753582263531,-460.0,0.00021095,2]
[375198124,1753582263541,-460.0,0.00021095,2]
[375198125,1753582263550,-460.0,0.00021095,2]
[375198126,1753582263560,-460.0,0.00021095,2]
[375198127,1753582263575,-460.0,0.00021095,2]
[375198128,1753582263585,-1208.47,0.00021095,2]
[375198129,1753582263794,-460.0,0.00021095,2]
[375198130,1753582263807,-460.0,0.00021095,2]
[375198131,1753582263819,-460.0,0.00021095,2]
[375198132,1753582263829,-460.0,0.00021095,2]
[375198133,1753582263839,-460.0,0.00021095,2]
[375198134,1753582263849,-460.0,0.00021095,2]
[375198135,1753582263859,-460.0,0.00021095,2]
[375198136,1753582263870,-1316.47,0.00021095,2]
[375198137,1753582263880,-487.35,0.00021095,2]
[375198138,1753582263890,-460.0,0.00021095,2]
[375198139,1753582263900,-1027.94,0.00021095,2]
[375198140,1753582263910,-460.0,0.00021095,2]